[Event "*** Titled Tuesday Blitz"]
[Site "Chess.com"]
[Date "2018.07.03"]
[Round "2"]
[White "canwedoit"]
[Black "Aleksey_Sorokin"]
[Result "0-1"]
[WhiteElo "2542"]
[BlackElo "2771"]
[TimeControl "180+2"]
[EndTime "13:22:48 PDT"]
[Termination "Aleksey_Sorokin won by resignation"]

1. d4 {[%clk 0:03:01.9]} 1... Nf6 {[%clk 0:02:59.8]} 2. Bf4 {[%clk 0:03:01.6]}
2... d5 {[%clk 0:02:59.6]} 3. e3 {[%clk 0:03:02.2]} 3... c5 {[%clk 0:03:00.4]}
4. dxc5 {[%clk 0:03:03.1]} 4... Qa5+ {[%clk 0:02:57.3]} 5. Nc3 {[%clk
0:03:03.1]} 5... Qxc5 {[%clk 0:02:55.9]} 6. Nb5 {[%clk 0:03:04.5]} 6... Na6
{[%clk 0:02:53.9]} 7. c3 {[%clk 0:03:04.3]} 7... Bd7 {[%clk 0:02:51.7]} 8. a4
{[%clk 0:03:00.5]} 8... e6 {[%clk 0:02:50.3]} 9. Nf3 {[%clk 0:02:59.6]} 9... Be7
{[%clk 0:02:49.6]} 10. Bd3 {[%clk 0:02:58.1]} 10... O-O {[%clk 0:02:47.9]} 11.
O-O {[%clk 0:02:57.8]} 11... Qc8 {[%clk 0:02:43.6]} 12. Ne5 {[%clk 0:02:51.2]}
12... Nc5 {[%clk 0:02:42.5]} 13. Bc2 {[%clk 0:02:49.9]} 13... a6 {[%clk
0:02:41.7]} 14. Nd4 {[%clk 0:02:49.1]} 14... Be8 {[%clk 0:02:37.9]} 15. a5
{[%clk 0:02:40.2]} 15... Ncd7 {[%clk 0:02:38.1]} 16. h3 {[%clk 0:02:13.4]} 16...
Nxe5 {[%clk 0:02:36.8]} 17. Bxe5 {[%clk 0:02:15.3]} 17... Nd7 {[%clk 0:02:28.2]}
18. Bh2 {[%clk 0:02:15.4]} 18... Nc5 {[%clk 0:02:22.9]} 19. Qf3 {[%clk
0:02:11.3]} 19... f5 {[%clk 0:02:20.2]} 20. Rfd1 {[%clk 0:02:02.1]} 20... Ne4
{[%clk 0:02:17.7]} 21. Bb3 {[%clk 0:01:55.7]} 21... Bf7 {[%clk 0:02:15.2]} 22.
Qe2 {[%clk 0:01:52.7]} 22... Nc5 {[%clk 0:02:11.6]} 23. Bc2 {[%clk 0:01:53.2]}
23... Bf6 {[%clk 0:02:11.9]} 24. Nf3 {[%clk 0:01:38.9]} 24... Nd7 {[%clk
0:02:06.7]} 25. Ba4 {[%clk 0:01:33.1]} 25... Bh5 {[%clk 0:02:03.2]} 26. c4
{[%clk 0:01:29.1]} 26... Nc5 {[%clk 0:01:48.7]} 27. cxd5 {[%clk 0:01:28.7]}
27... Nxa4 {[%clk 0:00:27.7]} 28. Rxa4 {[%clk 0:01:30.6]} 28... exd5 {[%clk
0:00:28.5]} 29. Rxd5 {[%clk 0:01:22.1]} 29... Qc6 {[%clk 0:00:29.1]} 30. Qd1
{[%clk 0:01:23.2]} 30... Rfd8 {[%clk 0:00:29]} 31. Rxd8+ {[%clk 0:01:01.5]}
31... Rxd8 {[%clk 0:00:29.9]} 32. Qb3+ {[%clk 0:00:56.1]} 32... Bf7 {[%clk
0:00:30.4]} 33. Qb4 {[%clk 0:00:46.8]} 33... Rd1+ {[%clk 0:00:26.2]} 34. Ne1
{[%clk 0:00:48.3]} 34... Qxa4 {[%clk 0:00:23.8]} 0-1

[Event "*** Titled Tuesday Blitz"]
[Site "Chess.com"]
[Date "2018.07.03"]
[Round "2"]
[White "Kaphrep"]
[Black "morphy1984"]
[Result "1-0"]
[WhiteElo "2670"]
[BlackElo "2514"]
[TimeControl "180+2"]
[EndTime "13:22:59 PDT"]
[Termination "Kaphrep won by resignation"]

1. b3 {[%clk 0:03:01.9]} 1... e5 {[%clk 0:02:59]} 2. Bb2 {[%clk 0:03:03]} 2...
Nc6 {[%clk 0:02:59.6]} 3. Nf3 {[%clk 0:03:04.3]} 3... e4 {[%clk 0:02:55.4]} 4.
Nd4 {[%clk 0:03:05.2]} 4... Nxd4 {[%clk 0:02:53.1]} 5. Bxd4 {[%clk 0:03:05.9]}
5... Nf6 {[%clk 0:02:53]} 6. e3 {[%clk 0:03:05.9]} 6... Be7 {[%clk 0:02:50]} 7.
c4 {[%clk 0:03:05.9]} 7... O-O {[%clk 0:02:49.8]} 8. Nc3 {[%clk 0:03:06.2]} 8...
c6 {[%clk 0:02:44.7]} 9. Be2 {[%clk 0:02:53]} 9... d5 {[%clk 0:02:33.3]} 10.
cxd5 {[%clk 0:02:54.9]} 10... cxd5 {[%clk 0:02:33.2]} 11. O-O {[%clk 0:02:56.4]}
11... Be6 {[%clk 0:02:30.3]} 12. f3 {[%clk 0:02:37.2]} 12... a6 {[%clk
0:01:58.1]} 13. Qe1 {[%clk 0:02:25.6]} 13... b5 {[%clk 0:01:55.3]} 14. fxe4
{[%clk 0:02:12.3]} 14... Nxe4 {[%clk 0:01:52.8]} 15. Nxe4 {[%clk 0:02:09.4]}
15... dxe4 {[%clk 0:01:53.6]} 16. Qg3 {[%clk 0:02:10.3]} 16... f6 {[%clk
0:01:48.4]} 17. Bg4 {[%clk 0:01:42]} 17... Qd7 {[%clk 0:01:17.3]} 18. h3 {[%clk
0:00:44.2]} 18... Rac8 {[%clk 0:01:01.1]} 19. Rf2 {[%clk 0:00:43.6]} 19... Bc5
{[%clk 0:00:43.1]} 20. Bc3 {[%clk 0:00:25.3]} 20... Bxg4 {[%clk 0:00:41.5]} 21.
hxg4 {[%clk 0:00:25.4]} 21... Qd3 {[%clk 0:00:24.8]} 22. Re1 {[%clk 0:00:09]}
22... Bb6 {[%clk 0:00:17.5]} 23. Qf4 {[%clk 0:00:07.8]} 23... h6 {[%clk
0:00:14.4]} 24. Qf5 {[%clk 0:00:08.7]} 24... Rc5 {[%clk 0:00:12.2]} 25. Qe6+
{[%clk 0:00:09.3]} 25... Kh8 {[%clk 0:00:11.2]} 26. Qxb6 {[%clk 0:00:10]} 26...
Rg5 {[%clk 0:00:12.1]} 27. Qe6 {[%clk 0:00:10.1]} 1-0

[Event "*** Titled Tuesday Blitz"]
[Site "Chess.com"]
[Date "2018.07.03"]
[Round "2"]
[White "plouarzel"]
[Black "2Tilted"]
[Result "1-0"]
[WhiteElo "2477"]
[BlackElo "2313"]
[TimeControl "180+2"]
[EndTime "13:23:01 PDT"]
[Termination "plouarzel won by resignation"]

1. e4 {[%clk 0:03:01.9]} 1... c5 {[%clk 0:03:00.4]} 2. Nf3 {[%clk 0:02:53]} 2...
e6 {[%clk 0:03:01.4]} 3. g3 {[%clk 0:02:52.1]} 3... Nc6 {[%clk 0:03:01.9]} 4.
Bg2 {[%clk 0:02:52.5]} 4... Nf6 {[%clk 0:02:52.6]} 5. d3 {[%clk 0:02:52.8]} 5...
d6 {[%clk 0:02:49.5]} 6. O-O {[%clk 0:02:53.1]} 6... Be7 {[%clk 0:02:49.2]} 7.
c3 {[%clk 0:02:51.1]} 7... e5 {[%clk 0:02:37.4]} 8. Nbd2 {[%clk 0:02:46.5]} 8...
O-O {[%clk 0:02:37.3]} 9. Re1 {[%clk 0:02:47.5]} 9... b5 {[%clk 0:02:36.1]} 10.
a4 {[%clk 0:02:47.6]} 10... b4 {[%clk 0:02:33.9]} 11. Nc4 {[%clk 0:02:48.9]}
11... a5 {[%clk 0:02:31.6]} 12. Bg5 {[%clk 0:02:42]} 12... h6 {[%clk 0:02:25.8]}
13. Bxf6 {[%clk 0:02:42.8]} 13... Bxf6 {[%clk 0:02:27]} 14. Nfd2 {[%clk
0:02:41.6]} 14... Bg5 {[%clk 0:02:23.9]} 15. Ne3 {[%clk 0:02:35.4]} 15... Be6
{[%clk 0:02:15.9]} 16. Ndc4 {[%clk 0:02:34.6]} 16... g6 {[%clk 0:01:57.3]} 17.
Nd5 {[%clk 0:02:34.2]} 17... Bxd5 {[%clk 0:01:24.7]} 18. exd5 {[%clk 0:02:34.6]}
18... Ne7 {[%clk 0:01:25.4]} 19. Qe2 {[%clk 0:02:10.8]} 19... f5 {[%clk
0:01:13.3]} 20. Rad1 {[%clk 0:02:09.6]} 20... Bf6 {[%clk 0:01:12.9]} 21. f4
{[%clk 0:02:02.5]} 21... exf4 {[%clk 0:01:08.3]} 22. gxf4 {[%clk 0:02:00.7]}
22... bxc3 {[%clk 0:01:02.1]} 23. bxc3 {[%clk 0:01:57.4]} 23... Rf7 {[%clk
0:01:01.3]} 24. Qe6 {[%clk 0:01:52.4]} 24... Ra6 {[%clk 0:00:52.2]} 25. Ne5
{[%clk 0:01:29.8]} 25... dxe5 {[%clk 0:00:33.1]} 26. Qxa6 {[%clk 0:01:31.7]}
26... Nxd5 {[%clk 0:00:20.4]} 27. fxe5 {[%clk 0:01:30.4]} 27... Nxc3 {[%clk
0:00:19.5]} 28. exf6 {[%clk 0:01:21.3]} 28... Nxd1 {[%clk 0:00:16.6]} 29. Rxd1
{[%clk 0:01:22.7]} 29... Qxf6 {[%clk 0:00:15.2]} 30. Qxf6 {[%clk 0:01:21.4]}
30... Rxf6 {[%clk 0:00:16.4]} 31. Rc1 {[%clk 0:01:22.3]} 31... Rd6 {[%clk
0:00:17.4]} 32. Rxc5 {[%clk 0:01:16.5]} 32... Rxd3 {[%clk 0:00:18.3]} 33. Rxa5
{[%clk 0:01:18.1]} 33... Rd1+ {[%clk 0:00:19.4]} 34. Kf2 {[%clk 0:01:18.6]}
34... Rd2+ {[%clk 0:00:20.8]} 35. Kf1 {[%clk 0:01:19.1]} 35... Kg7 {[%clk
0:00:22.3]} 36. h4 {[%clk 0:01:16.1]} 36... Kf6 {[%clk 0:00:22.7]} 37. Ra6+
{[%clk 0:01:16.7]} 37... Kg7 {[%clk 0:00:22.3]} 38. a5 {[%clk 0:01:18.1]} 38...
g5 {[%clk 0:00:23.4]} 39. h5 {[%clk 0:01:18.2]} 39... g4 {[%clk 0:00:23.9]} 40.
Rg6+ {[%clk 0:01:19.2]} 40... Kf7 {[%clk 0:00:21.9]} 41. a6 {[%clk 0:01:19]}
41... Ra2 {[%clk 0:00:18.1]} 42. Bd5+ {[%clk 0:01:20]} 1-0

[Event "*** Titled Tuesday Blitz"]
[Site "Chess.com"]
[Date "2018.07.03"]
[Round "2"]
[White "Grebeniuk-S"]
[Black "Flawless2018"]
[Result "0-1"]
[WhiteElo "2459"]
[BlackElo "2418"]
[TimeControl "180+2"]
[EndTime "13:23:04 PDT"]
[Termination "Flawless2018 won by resignation"]

1. d4 {[%clk 0:03:01.9]} 1... Nf6 {[%clk 0:03:00.3]} 2. Nf3 {[%clk 0:03:02.8]}
2... e6 {[%clk 0:03:00]} 3. e3 {[%clk 0:03:03.4]} 3... d5 {[%clk 0:02:59]} 4.
Bd3 {[%clk 0:03:04.2]} 4... Bd6 {[%clk 0:02:58.7]} 5. Nbd2 {[%clk 0:03:04.8]}
5... b6 {[%clk 0:03:00.1]} 6. O-O {[%clk 0:03:04.1]} 6... Bb7 {[%clk 0:03:01.3]}
7. Ne5 {[%clk 0:03:04.7]} 7... Ne4 {[%clk 0:03:00.4]} 8. Qf3 {[%clk 0:02:35.5]}
8... f5 {[%clk 0:02:49.3]} 9. Bxe4 {[%clk 0:02:21.5]} 9... Bxe5 {[%clk
0:01:54.7]} 10. Bxf5 {[%clk 0:02:22.3]} 10... Rf8 {[%clk 0:01:43.6]} 11. Qh5+
{[%clk 0:02:16.4]} 11... g6 {[%clk 0:01:43.2]} 12. Bxg6+ {[%clk 0:02:16.9]}
12... hxg6 {[%clk 0:01:44.1]} 13. Qxg6+ {[%clk 0:02:15.9]} 13... Kd7 {[%clk
0:01:42.6]} 14. dxe5 {[%clk 0:02:13.6]} 14... Nc6 {[%clk 0:01:38.2]} 15. f4
{[%clk 0:02:06.4]} 15... Qe7 {[%clk 0:01:35.8]} 16. Nf3 {[%clk 0:02:04]} 16...
Rh8 {[%clk 0:01:30.5]} 17. Bd2 {[%clk 0:01:45.4]} 17... Rag8 {[%clk 0:01:27.7]}
18. Qf6 {[%clk 0:01:46.4]} 18... Qh7 {[%clk 0:01:24.1]} 19. Be1 {[%clk
0:00:55.7]} 19... Ne7 {[%clk 0:01:18.1]} 20. Bg3 {[%clk 0:00:37.9]} 20... Rf8
{[%clk 0:01:12.9]} 21. Ng5 {[%clk 0:00:24.6]} 21... Qg8 {[%clk 0:01:00.6]} 22.
Qxe6+ {[%clk 0:00:20]} 22... Qxe6 {[%clk 0:01:02.5]} 23. Nxe6 {[%clk 0:00:21.4]}
23... Kxe6 {[%clk 0:01:04.4]} 24. Rae1 {[%clk 0:00:12.9]} 24... Nf5 {[%clk
0:01:04]} 25. Bf2 {[%clk 0:00:13.4]} 25... c5 {[%clk 0:01:04.6]} 26. c3 {[%clk
0:00:12.9]} 26... Ba6 {[%clk 0:00:59.4]} 27. g3 {[%clk 0:00:09.7]} 27... Bxf1
{[%clk 0:00:55.8]} 28. Rxf1 {[%clk 0:00:11.6]} 28... Rh3 {[%clk 0:00:57.4]} 29.
Kg2 {[%clk 0:00:12.5]} 29... Rfh8 {[%clk 0:00:56.3]} 30. Bg1 {[%clk 0:00:13.3]}
30... Rxh2+ {[%clk 0:00:41.2]} 31. Kf3 {[%clk 0:00:11.1]} 31... Rxb2 {[%clk
0:00:40.1]} 32. e4 {[%clk 0:00:09.4]} 32... dxe4+ {[%clk 0:00:40.8]} 33. Kxe4
{[%clk 0:00:11.3]} 33... Nxg3+ {[%clk 0:00:41.8]} 0-1

[Event "*** Titled Tuesday Blitz"]
[Site "Chess.com"]
[Date "2018.07.03"]
[Round "2"]
[White "volodja49"]
[Black "Parhamov"]
[Result "1/2-1/2"]
[WhiteElo "2468"]
[BlackElo "2756"]
[TimeControl "180+2"]
[EndTime "13:23:04 PDT"]
[Termination "Game drawn by agreement"]

1. d4 {[%clk 0:03:01.9]} 1... d5 {[%clk 0:02:59.8]} 2. c4 {[%clk 0:03:02.4]}
2... c6 {[%clk 0:03:01]} 3. Nc3 {[%clk 0:03:02.3]} 3... Nf6 {[%clk 0:03:01.9]}
4. cxd5 {[%clk 0:03:03.2]} 4... cxd5 {[%clk 0:03:01.9]} 5. Nf3 {[%clk
0:03:05.1]} 5... a6 {[%clk 0:03:02.6]} 6. Bf4 {[%clk 0:03:05.9]} 6... Nc6 {[%clk
0:03:03.4]} 7. e3 {[%clk 0:03:06.2]} 7... Bf5 {[%clk 0:03:04.4]} 8. Rc1 {[%clk
0:03:02.6]} 8... e6 {[%clk 0:03:05.3]} 9. Bd3 {[%clk 0:02:50.8]} 9... Bxd3
{[%clk 0:03:05.7]} 10. Qxd3 {[%clk 0:02:52.7]} 10... Be7 {[%clk 0:03:06.7]} 11.
O-O {[%clk 0:02:53.3]} 11... O-O {[%clk 0:03:07.8]} 12. h3 {[%clk 0:02:44.3]}
12... Qa5 {[%clk 0:03:07.7]} 13. a3 {[%clk 0:02:41.9]} 13... Rfc8 {[%clk
0:03:08.1]} 14. Rc2 {[%clk 0:02:42.2]} 14... Qd8 {[%clk 0:03:04.9]} 15. Rfc1
{[%clk 0:02:40.4]} 15... Na5 {[%clk 0:03:05.8]} 16. Ne5 {[%clk 0:02:18]} 16...
Nc4 {[%clk 0:03:05.6]} 17. Nb1 {[%clk 0:01:41.6]} 17... b5 {[%clk 0:02:47.2]}
18. b3 {[%clk 0:01:17.1]} 18... Nxe5 {[%clk 0:02:41.3]} 19. Bxe5 {[%clk
0:01:15.7]} 19... Nd7 {[%clk 0:02:39.9]} 20. Bc7 {[%clk 0:01:14.5]} 20... Qf8
{[%clk 0:02:40.7]} 21. b4 {[%clk 0:01:11.6]} 21... Bd8 {[%clk 0:02:31.9]} 22.
Nd2 {[%clk 0:01:04.3]} 22... Bxc7 {[%clk 0:02:30.1]} 23. Rxc7 {[%clk 0:01:06]}
23... Nb6 {[%clk 0:02:31.6]} 24. Nb3 {[%clk 0:00:58.7]} 24... Nc4 {[%clk
0:02:31.4]} 25. Rxc8 {[%clk 0:00:57.6]} 25... Qxc8 {[%clk 0:02:30.9]} 26. Nc5
{[%clk 0:00:59.5]} 26... a5 {[%clk 0:02:31.5]} 27. Qb3 {[%clk 0:00:49.7]} 27...
axb4 {[%clk 0:02:30.8]} 28. Qxb4 {[%clk 0:00:50.9]} 28... Nxa3 {[%clk
0:02:31.1]} 29. Rc3 {[%clk 0:00:46.7]} 29... Nc4 {[%clk 0:02:29]} 30. Qxb5
{[%clk 0:00:48.1]} 30... Ra1+ {[%clk 0:02:24.3]} 31. Kh2 {[%clk 0:00:48.7]}
31... Nd2 {[%clk 0:02:16.2]} 32. Qb2 {[%clk 0:00:39.3]} 32... Nf1+ {[%clk
0:02:10.7]} 33. Kg1 {[%clk 0:00:36.8]} 33... Qa8 {[%clk 0:02:04.6]} 34. Rc1
{[%clk 0:00:34.9]} 34... Ra2 {[%clk 0:02:01.3]} 35. Qc3 {[%clk 0:00:35.4]} 35...
Nd2 {[%clk 0:02:01.9]} 36. Nb3 {[%clk 0:00:34.3]} 36... Nc4 {[%clk 0:02:02]} 37.
Nc5 {[%clk 0:00:28.4]} 37... h6 {[%clk 0:02:02.3]} 38. Rb1 {[%clk 0:00:28.2]}
38... Nd2 {[%clk 0:02:00.6]} 39. Rd1 {[%clk 0:00:26.7]} 39... Nc4 {[%clk
0:01:59.4]} 40. Rb1 {[%clk 0:00:27.4]} 40... Ra3 {[%clk 0:02:00.7]} 41. Qb4
{[%clk 0:00:28.1]} 41... Kh7 {[%clk 0:02:00.5]} 42. Qb7 {[%clk 0:00:28.2]} 42...
Qe8 {[%clk 0:01:58.8]} 43. Qc7 {[%clk 0:00:26.6]} 43... Nd2 {[%clk 0:01:58.3]}
44. Rb8 {[%clk 0:00:24]} 44... Ra1+ {[%clk 0:01:59.2]} 45. Kh2 {[%clk
0:00:24.5]} 45... Nf1+ {[%clk 0:02:00]} 46. Kh1 {[%clk 0:00:25.9]} 46... Nxe3+
{[%clk 0:01:59.1]} 47. Kh2 {[%clk 0:00:27.3]} 47... Nf1+ {[%clk 0:02:00.3]} 48.
Kg1 {[%clk 0:00:28.7]} 1/2-1/2

[Event "*** Titled Tuesday Blitz"]
[Site "Chess.com"]
[Date "2018.07.03"]
[Round "2"]
[White "destroyer305"]
[Black "Doraemon7"]
[Result "1-0"]
[WhiteElo "2314"]
[BlackElo "2479"]
[TimeControl "180+2"]
[EndTime "13:23:08 PDT"]
[Termination "destroyer305 won by resignation"]

1. e4 {[%clk 0:03:01.9]} 1... e5 {[%clk 0:03:00.4]} 2. Nf3 {[%clk 0:03:02.1]}
2... Nc6 {[%clk 0:03:01.9]} 3. d4 {[%clk 0:03:03.5]} 3... exd4 {[%clk
0:03:03.2]} 4. Bc4 {[%clk 0:03:05.1]} 4... Nf6 {[%clk 0:03:03.3]} 5. e5 {[%clk
0:03:06.6]} 5... Ne4 {[%clk 0:03:03.8]} 6. Qe2 {[%clk 0:03:06]} 6... Nc5 {[%clk
0:03:04]} 7. c3 {[%clk 0:03:06.4]} 7... d3 {[%clk 0:03:04.5]} 8. Qe3 {[%clk
0:03:06.9]} 8... Be7 {[%clk 0:02:57.3]} 9. b4 {[%clk 0:03:07.8]} 9... Ne6 {[%clk
0:02:54.9]} 10. O-O {[%clk 0:03:08.4]} 10... d6 {[%clk 0:02:48.6]} 11. Rd1
{[%clk 0:03:06.1]} 11... Nxe5 {[%clk 0:02:40.1]} 12. Nxe5 {[%clk 0:03:07.1]}
12... dxe5 {[%clk 0:02:42]} 13. Bxd3 {[%clk 0:02:53.1]} 13... Bd6 {[%clk
0:02:34.4]} 14. c4 {[%clk 0:02:54.4]} 14... c6 {[%clk 0:02:22.2]} 15. c5 {[%clk
0:02:52.3]} 15... Bc7 {[%clk 0:02:23.6]} 16. Bb2 {[%clk 0:02:46.3]} 16... Qg5
{[%clk 0:02:14.4]} 17. Qxg5 {[%clk 0:02:11.5]} 17... Nxg5 {[%clk 0:02:15.5]} 18.
f4 {[%clk 0:02:13.2]} 18... exf4 {[%clk 0:01:59.2]} 19. Bxg7 {[%clk 0:02:13.9]}
19... Rg8 {[%clk 0:02:00.3]} 20. Bf6 {[%clk 0:02:07.6]} 20... f3 {[%clk
0:01:44.3]} 21. g3 {[%clk 0:02:01.5]} 21... Bh3 {[%clk 0:01:13.5]} 22. Nc3
{[%clk 0:01:52.6]} 22... Bg2 {[%clk 0:01:09.5]} 23. Re1+ {[%clk 0:01:26.6]}
23... Kf8 {[%clk 0:01:02.9]} 24. Be7+ {[%clk 0:01:26.8]} 24... Kg7 {[%clk
0:00:50.1]} 25. Bxg5 {[%clk 0:01:28.4]} 25... Rae8 {[%clk 0:00:45.3]} 26. Ne4
{[%clk 0:01:22.7]} 26... Be5 {[%clk 0:00:45.9]} 27. Nd6 {[%clk 0:01:17.2]} 27...
Bd4+ {[%clk 0:00:43.4]} 28. Be3 {[%clk 0:01:15.8]} 28... Rxe3 {[%clk 0:00:31.5]}
29. Nf5+ {[%clk 0:01:15.8]} 29... Kf6 {[%clk 0:00:31.2]} 30. Nxe3 {[%clk
0:01:16]} 30... Bxa1 {[%clk 0:00:17.8]} 31. Rxa1 {[%clk 0:01:15.4]} 31... Rd8
{[%clk 0:00:19.7]} 32. Rd1 {[%clk 0:01:12.4]} 32... Bh3 {[%clk 0:00:19.8]} 33.
Kf2 {[%clk 0:01:12.6]} 33... Be6 {[%clk 0:00:18.3]} 34. Kxf3 {[%clk 0:01:11.6]}
34... Bxa2 {[%clk 0:00:19.2]} 35. Be4 {[%clk 0:01:07.8]} 35... Re8 {[%clk
0:00:15.7]} 36. Rd6+ {[%clk 0:01:08.3]} 36... Be6 {[%clk 0:00:16.3]} 37. Bf5
{[%clk 0:01:05.7]} 37... Re7 {[%clk 0:00:14.5]} 38. Bxe6 {[%clk 0:01:06.7]}
38... fxe6 {[%clk 0:00:16.4]} 39. Nc4 {[%clk 0:01:06.1]} 39... Kf5 {[%clk
0:00:15.4]} 40. g4+ {[%clk 0:01:06.2]} 40... Kg5 {[%clk 0:00:16.2]} 41. Ne5
{[%clk 0:01:06.9]} 41... Kh4 {[%clk 0:00:16.3]} 42. Rd7 {[%clk 0:01:06]} 42...
Rxd7 {[%clk 0:00:15.6]} 43. Nxd7 {[%clk 0:01:07.9]} 1-0

[Event "*** Titled Tuesday Blitz"]
[Site "Chess.com"]
[Date "2018.07.03"]
[Round "2"]
[White "grandmastergauri"]
[Black "SergeiAza"]
[Result "0-1"]
[WhiteElo "2490"]
[BlackElo "2686"]
[TimeControl "180+2"]
[EndTime "13:23:19 PDT"]
[Termination "SergeiAza won by resignation"]

1. Nf3 {[%clk 0:03:01.9]} 1... Nf6 {[%clk 0:02:58.7]} 2. g3 {[%clk 0:03:02.2]}
2... b5 {[%clk 0:02:59.2]} 3. Bg2 {[%clk 0:03:00.9]} 3... Bb7 {[%clk 0:03:00.7]}
4. d4 {[%clk 0:02:55]} 4... e6 {[%clk 0:02:59.2]} 5. O-O {[%clk 0:02:54.7]} 5...
c5 {[%clk 0:03:00.7]} 6. c3 {[%clk 0:02:54.9]} 6... Nc6 {[%clk 0:02:52.7]} 7.
Bg5 {[%clk 0:02:50.8]} 7... d5 {[%clk 0:02:37.4]} 8. a4 {[%clk 0:02:33.2]} 8...
b4 {[%clk 0:02:34]} 9. a5 {[%clk 0:02:27.1]} 9... Rb8 {[%clk 0:02:10.2]} 10.
cxb4 {[%clk 0:02:08.6]} 10... cxb4 {[%clk 0:02:01.2]} 11. Qa4 {[%clk 0:01:54.3]}
11... Qd7 {[%clk 0:01:43.2]} 12. Bf4 {[%clk 0:01:43.5]} 12... Bd6 {[%clk
0:01:41]} 13. Ne5 {[%clk 0:01:16.2]} 13... Bxe5 {[%clk 0:01:38.5]} 14. dxe5
{[%clk 0:01:09.6]} 14... Nh5 {[%clk 0:01:34]} 15. Nd2 {[%clk 0:00:47.4]} 15...
Nxf4 {[%clk 0:01:32.2]} 16. gxf4 {[%clk 0:00:49.3]} 16... O-O {[%clk 0:01:32.8]}
17. Nb3 {[%clk 0:00:47.3]} 17... Qe7 {[%clk 0:01:21]} 18. Rac1 {[%clk
0:00:28.9]} 18... Rbc8 {[%clk 0:01:20.2]} 19. a6 {[%clk 0:00:20.3]} 19... Ba8
{[%clk 0:01:20.8]} 20. Rc5 {[%clk 0:00:21.3]} 20... f6 {[%clk 0:01:21.4]} 21.
exf6 {[%clk 0:00:21.1]} 21... Rxf6 {[%clk 0:01:20.5]} 22. e3 {[%clk 0:00:22.1]}
22... Rg6 {[%clk 0:01:20.1]} 23. Kh1 {[%clk 0:00:20.2]} 23... Qh4 {[%clk
0:01:09.9]} 24. Nd4 {[%clk 0:00:20]} 24... Rf8 {[%clk 0:01:00.2]} 25. Rxc6
{[%clk 0:00:20.2]} 25... Bxc6 {[%clk 0:00:51.9]} 26. Qxc6 {[%clk 0:00:22.1]}
26... Kh8 {[%clk 0:00:23.8]} 27. Qb5 {[%clk 0:00:21.5]} 27... h6 {[%clk
0:00:17.2]} 28. Qxb4 {[%clk 0:00:21.5]} 28... Rff6 {[%clk 0:00:18.7]} 29. Qb8+
{[%clk 0:00:21.3]} 29... Kh7 {[%clk 0:00:19.6]} 30. Qxa7 {[%clk 0:00:22.8]}
30... Rxg2 {[%clk 0:00:17.3]} 31. Kxg2 {[%clk 0:00:23.4]} 31... Qg4+ {[%clk
0:00:18.8]} 32. Kh1 {[%clk 0:00:24.2]} 32... Rg6 {[%clk 0:00:20.4]} 0-1

[Event "*** Titled Tuesday Blitz"]
[Site "Chess.com"]
[Date "2018.07.03"]
[Round "2"]
[White "GM_Huschenbeth"]
[Black "bugsbunny444"]
[Result "1-0"]
[WhiteElo "2447"]
[BlackElo "2380"]
[TimeControl "180+2"]
[EndTime "13:23:19 PDT"]
[Termination "GM_Huschenbeth won by resignation"]

1. e4 {[%clk 0:03:01.9]} 1... c5 {[%clk 0:03:00.9]} 2. Nf3 {[%clk 0:03:02.5]}
2... e6 {[%clk 0:03:02.2]} 3. d4 {[%clk 0:03:03.4]} 3... cxd4 {[%clk 0:03:03.8]}
4. Nxd4 {[%clk 0:03:05.3]} 4... a6 {[%clk 0:03:05.6]} 5. Bd3 {[%clk 0:03:05.6]}
5... Nf6 {[%clk 0:03:05.8]} 6. O-O {[%clk 0:03:06.3]} 6... Qc7 {[%clk
0:03:07.1]} 7. Qe2 {[%clk 0:03:06.9]} 7... d6 {[%clk 0:03:07.1]} 8. c4 {[%clk
0:03:07.9]} 8... Nbd7 {[%clk 0:03:04.5]} 9. Nc3 {[%clk 0:03:08.1]} 9... b6
{[%clk 0:02:59.7]} 10. f4 {[%clk 0:03:04.8]} 10... Bb7 {[%clk 0:02:52.6]} 11. f5
{[%clk 0:03:05.1]} 11... e5 {[%clk 0:02:27.3]} 12. Nc2 {[%clk 0:02:59.5]} 12...
Be7 {[%clk 0:02:07.7]} 13. Ne3 {[%clk 0:02:54.4]} 13... Nc5 {[%clk 0:02:03.8]}
14. Ned5 {[%clk 0:02:51.7]} 14... Bxd5 {[%clk 0:02:01.8]} 15. exd5 {[%clk
0:02:53.6]} 15... Nxd3 {[%clk 0:01:46.3]} 16. Qxd3 {[%clk 0:02:55.5]} 16... Rc8
{[%clk 0:01:47.6]} 17. b3 {[%clk 0:02:11.6]} 17... b5 {[%clk 0:01:38]} 18. Qg3
{[%clk 0:00:53.8]} 18... bxc4 {[%clk 0:01:38.2]} 19. b4 {[%clk 0:00:54.7]} 19...
Qb6+ {[%clk 0:00:38.3]} 20. Kh1 {[%clk 0:00:55.4]} 20... Qd4 {[%clk 0:00:39.9]}
21. Bb2 {[%clk 0:00:39.9]} 21... O-O {[%clk 0:00:24.8]} 22. Rad1 {[%clk
0:00:35.8]} 22... Qb6 {[%clk 0:00:20.9]} 23. a3 {[%clk 0:00:36.7]} 23... a5
{[%clk 0:00:21.9]} 24. b5 {[%clk 0:00:37.5]} 24... a4 {[%clk 0:00:21.4]} 25. Bc1
{[%clk 0:00:37.9]} 25... Kh8 {[%clk 0:00:20.2]} 26. Bg5 {[%clk 0:00:36.1]} 26...
Rc5 {[%clk 0:00:09.5]} 27. Qh4 {[%clk 0:00:32.7]} 27... Rxb5 {[%clk 0:00:09.4]}
28. Rf3 {[%clk 0:00:32]} 28... Rb3 {[%clk 0:00:06.4]} 29. Rh3 {[%clk 0:00:26.8]}
29... Rxc3 {[%clk 0:00:07.6]} 30. Rxc3 {[%clk 0:00:28.4]} 30... Rc8 {[%clk
0:00:05]} 31. Rh3 {[%clk 0:00:29.1]} 31... Kg8 {[%clk 0:00:04.6]} 32. Bxf6
{[%clk 0:00:30]} 32... Bxf6 {[%clk 0:00:06.5]} 33. Qxh7+ {[%clk 0:00:31.1]}
33... Kf8 {[%clk 0:00:08.4]} 34. Qh8+ {[%clk 0:00:32.7]} 34... Ke7 {[%clk
0:00:10.3]} 35. Qxc8 {[%clk 0:00:34.5]} 1-0